bitfinex/quotes_BTCUSD_20240728
["timestamp","ask_amount","ask_price","bid_price","bid_amount"]
[1722153527254,0.00084,67658.0,67657.0,1.9103527]
[1722153527463,0.00084,67658.0,67657.0,1.9243527]
[1722153527986,0.00084,67658.0,67657.0,1.9383527]
[1722153528381,0.00084,67658.0,67657.0,1.9363527]
[1722153528583,0.00084,67658.0,67657.0,1.9263527]
[1722153528791,0.00084,67658.0,67657.0,1.9403527]
[1722153529369,0.00084,67658.0,67657.0,2.01665134]
[1722153529571,0.00842,67672.0,67671.0,1.063971]
[1722153529752,0.00842,67672.0,67671.0,1.47333057]
[1722153531711,0.00842,67672.0,67671.0,1.59610532]
[1722153532065,0.00842,67672.0,67671.0,1.60210532]
[1722153532239,0.00842,67672.0,67671.0,1.60810532]
[1722153532643,0.00842,67672.0,67671.0,1.47933057]
[1722153532869,0.00842,67672.0,67671.0,1.53750643]
[1722153533024,0.00842,67672.0,67671.0,1.61510643]
[1722153533230,0.00842,67672.0,67671.0,1.6151082]
[1722153533430,0.00842,67672.0,67671.0,1.48633057]
[1722153533768,0.00842,67672.0,67671.0,1.50033057]
[1722153534133,0.00842,67672.0,67671.0,1.6231085]
[1722153534933,0.00842,67672.0,67671.0,1.62310552]
[1722153537866,0.00842,67672.0,67671.0,1.50033057]
[1722153538058,0.00842,67672.0,67671.0,1.62310552]
[1722153541390,0.00842,67672.0,67671.0,1.63172245]
[1722153541815,0.00842,67672.0,67671.0,1.5089475]
[1722153541956,0.00842,67672.0,67671.0,1.63172183]
[1722153542357,0.00842,67672.0,67671.0,1.63172195]
[1722153542580,0.00792,67672.0,67671.0,1.63172195]
[1722153543128,0.00792,67672.0,67671.0,1.86815995]
[1722153545145,0.00792,67672.0,67671.0,1.86815626]
[1722153548335,0.00792,67672.0,67671.0,1.7453855]
[1722153548536,0.00792,67672.0,67671.0,1.86815425]
[1722153551691,0.00792,67672.0,67671.0,1.7453855]
[1722153551868,0.00792,67672.0,67671.0,1.86815435]
[1722153552254,0.00792,67672.0,67671.0,1.86815434]
[1722153554227,0.00792,67672.0,67671.0,1.86815468]
[1722153555071,0.00792,67672.0,67671.0,1.86815479]
[1722153556363,0.00792,67672.0,67671.0,1.93025479]
[1722153558297,0.00792,67672.0,67671.0,1.93024949]
[1722153559630,0.00792,67672.0,67671.0,1.86814949]
[1722153559863,0.00792,67672.0,67671.0,1.78664949]
[1722153561601,0.00792,67672.0,67671.0,1.6638855]
[1722153561749,0.00792,67672.0,67671.0,1.7866536]
[1722153564860,0.00792,67672.0,67671.0,1.6638855]
[1722153565063,0.00792,67672.0,67671.0,1.78665358]
[1722153566190,0.00792,67672.0,67671.0,1.8306898]
[1722153566355,0.00792,67672.0,67671.0,1.78665358]
[1722153566558,0.00792,67672.0,67671.0,1.83069872]
[1722153566976,0.00792,67672.0,67671.0,1.97889872]
[1722153567366,0.00792,67672.0,67671.0,1.97982272]
[1722153568247,0.00792,67672.0,67671.0,1.87047611]
[1722153570122,0.00792,67672.0,67671.0,2.1557794]
[1722153570322,0.00792,67672.0,67671.0,1.92197741]
[1722153570477,0.00792,67672.0,67671.0,2.01010037]
[1722153571320,0.00792,67672.0,67671.0,1.92197902]
[1722153571567,0.00792,67672.0,67671.0,1.92197564]
[1722153571770,0.00792,67672.0,67671.0,1.95861186]
[1722153571977,0.00792,67672.0,67671.0,1.87047176]
[1722153572178,0.00792,67672.0,67671.0,2.04580419]
[1722153572179,0.00102335,67672.0,67671.0,2.04580419]
[1722153572541,0.00102335,67672.0,67671.0,1.98065591]
[1722153572744,0.00102335,67672.0,67671.0,1.87047176]
[1722153572922,0.00102335,67672.0,67671.0,2.03216051]
[1722153573323,1e-08,67672.0,67671.0,2.03216051]
[1722153573547,0.00833,67678.0,67677.0,1.063876]
[1722153573744,0.00833,67678.0,67677.0,1.55858032]
[1722153573933,0.00833,67678.0,67677.0,1.5585793]
[1722153574133,0.00833,67678.0,67677.0,1.55858048]
[1722153574334,0.00833,67678.0,67677.0,1.55858714]
[1722153574758,0.00833,67678.0,67677.0,1.52149687]
[1722153575400,0.00833,67678.0,67677.0,1.56558694]
[1722153575610,0.00833,67678.0,67677.0,1.52149687]
[1722153575898,0.00833,67678.0,67677.0,1.57259929]
[1722153578079,0.00833,67678.0,67677.0,1.57260777]
[1722153579059,0.00833,67678.0,67677.0,1.52850024]
[1722153580276,0.00833,67678.0,67677.0,1.57260777]
[1722153580811,0.00833,67678.0,67677.0,1.57262086]
[1722153581045,0.0098842,67678.0,67677.0,1.52850024]
[1722153581244,0.0098842,67678.0,67677.0,1.5284986]
[1722153581445,0.00833,67678.0,67677.0,1.5284986]
[1722153581646,0.00833,67678.0,67677.0,1.57261994]
[1722153581871,0.00833,67678.0,67677.0,1.57262462]
[1722153582304,0.00833,67678.0,67677.0,1.52849976]
[1722153583251,0.00833,67678.0,67677.0,1.57262462]
[1722153584636,0.00833,67678.0,67677.0,1.57263617]
[1722153585033,0.00833,67678.0,67677.0,1.57263616]
[1722153585406,0.00833,67678.0,67677.0,1.5285018]
[1722153586375,0.00833,67678.0,67677.0,1.59470336]
[1722153586559,0.00833,67678.0,67677.0,1.5285018]
[1722153586760,0.0098842,67678.0,67677.0,1.57263933]
[1722153586963,0.0098842,67678.0,67677.0,1.59470336]
[1722153587274,0.0098842,67678.0,67677.0,1.57263853]
[1722153587480,0.00833,67678.0,67677.0,1.5285018]
[1722153587687,0.00833,67678.0,67677.0,1.57263978]
[1722153587886,0.00833,67678.0,67677.0,1.52850066]
[1722153588703,0.00833,67678.0,67677.0,1.59470702]
[1722153588911,0.0098842,67678.0,67677.0,1.57264132]
[1722153589753,0.00833,67678.0,67677.0,1.57264132]
[1722153590452,0.0098842,67678.0,67677.0,1.52850066]
[1722153590767,0.00833,67678.0,67677.0,1.52850066]
[1722153591219,0.00833,67678.0,67677.0,1.52850091]
[1722153592092,0.00833,67678.0,67677.0,1.57264668]
[1722153593348,0.00833,67678.0,67677.0,1.52850091]
[1722153594536,0.00833,67678.0,67677.0,1.5947583]
[1722153594736,0.00833,67678.0,67677.0,1.52850174]
[1722153594941,0.14903,67678.0,67677.0,1.06422517]
[1722153595149,0.14903,67678.0,67677.0,1.255476]
[1722153600990,0.14903,67678.0,67677.0,1.019059]
[1722153601616,0.14903,67678.0,67677.0,1.1418315]
[1722153603220,0.14903,67678.0,67677.0,1.26460373]
[1722153603473,0.14903,67678.0,67677.0,1.41486474]
[1722153603621,0.07153,67678.0,67677.0,1.29209107]
[1722153603849,0.07153,67678.0,67677.0,1.41486315]
[1722153604645,0.07153,67678.0,67677.0,1.65128015]
[1722153605052,0.00833,67687.0,67677.0,1.65128015]
[1722153605053,0.00833,67687.0,67678.0,0.0778]
[1722153605251,0.00833,67687.0,67686.0,0.432177]
[1722153605451,0.00833,67687.0,67686.0,1.15520657]
[1722153605981,0.09093,67687.0,67686.0,1.15520657]
[1722153606179,0.09093,67687.0,67686.0,0.690962]
[1722153606388,0.09093,67687.0,67686.0,0.768562]
[1722153608167,0.15373,67687.0,67686.0,0.768562]
[1722153609995,0.15373,67687.0,67686.0,0.77724015]
[1722153614912,0.16919265,67687.0,67686.0,0.77724015]
[1722153620488,0.16919265,67687.0,67686.0,0.69964015]
[1722153620961,0.16919265,67687.0,67686.0,0.00867815]
[1722153621143,0.16919265,67687.0,67682.0,0.00017785]
[1722153621144,0.1415,67686.0,67682.0,0.00017785]
[1722153621351,0.47284546,67687.0,67682.0,0.00017785]
[1722153621352,0.20802674,67683.0,67682.0,0.00017785]
[1722153621519,0.24328407,67683.0,67682.0,0.00017785]
[1722153621707,0.56838239,67683.0,67682.0,0.00017785]
[1722153621906,0.45018439,67683.0,67682.0,0.00017785]
[1722153622328,0.24328407,67683.0,67682.0,0.00017785]
[1722153622987,0.207946,67683.0,67682.0,0.00017785]
[1722153623148,0.207946,67683.0,67682.0,0.00117785]
[1722153623149,0.24347349,67683.0,67682.0,0.00117785]
[1722153623355,0.30997125,67683.0,67682.0,0.00117785]
[1722153623759,0.30997125,67683.0,67682.0,0.00217785]
[1722153624635,0.30997125,67683.0,67682.0,0.00117785]
[1722153624636,0.66456525,67683.0,67682.0,0.00117785]
[1722153624835,0.66456525,67683.0,67682.0,0.00017785]
[1722153624836,0.7797297,67683.0,67682.0,0.00017785]
[1722153625059,1.0161257,67683.0,67682.0,0.00017785]
[1722153625920,0.91206349,67683.0,67682.0,0.00017785]
[1722153626324,1.14805271,67683.0,67682.0,0.00017785]
[1722153628681,1.35004912,67683.0,67682.0,0.00017785]
[1722153628951,1.47650446,67683.0,67682.0,0.00017785]
[1722153629369,1.60928341,67683.0,67682.0,0.00017785]
[1722153629513,1.60928062,67683.0,67682.0,0.00017785]
[1722153629721,1.62676403,67683.0,67682.0,0.00117785]
[1722153629925,1.55765348,67683.0,67682.0,0.00117785]
[1722153630145,1.4764732,67683.0,67682.0,0.00217785]
[1722153630308,1.4764732,67683.0,67682.0,0.00117785]
[1722153630888,1.4764732,67683.0,67682.0,0.00217785]
[1722153631074,1.4764732,67683.0,67682.0,0.00117785]
[1722153631277,1.60915911,67683.0,67682.0,0.00117785]
[1722153631668,1.4764732,67683.0,67682.0,0.00117785]
[1722153631868,1.4764732,67683.0,67682.0,0.00017785]
[1722153632616,1.65473277,67683.0,67682.0,0.00117785]
[1722153632922,1.79611777,67683.0,67682.0,0.00117785]
[1722153633130,1.79611777,67683.0,67672.0,0.000924]
[1722153633131,0.827508,67673.0,67672.0,0.000924]
[1722153633335,0.827508,67673.0,67672.0,0.000804]
[1722153633336,1.3319867,67673.0,67672.0,0.000804]
[1722153633497,1.22148586,67673.0,67672.0,0.000804]
[1722153633680,1.24448586,67673.0,67672.0,0.000804]
[1722153634262,1.35494508,67673.0,67672.0,0.000804]
[1722153634465,1.24448586,67673.0,67672.0,0.000804]
[1722153634693,1.48091686,67673.0,67672.0,0.000804]
[1722153635503,1.55023455,67673.0,67672.0,0.000804]
[1722153635652,1.55023636,67673.0,67672.0,0.000804]
[1722153635858,1.44595922,67673.0,67672.0,0.000804]
[1722153636114,1.55059265,67673.0,67672.0,0.000804]
[1722153636319,1.60564565,67673.0,67672.0,0.000804]
[1722153636519,1.60564345,67673.0,67672.0,0.000804]
[1722153636848,1.4952716,67673.0,67672.0,0.000804]
[1722153637051,1.60564345,67673.0,67672.0,0.000804]
[1722153637229,1.5092716,67673.0,67672.0,0.000804]
[1722153637570,1.59754091,67673.0,67672.0,0.000804]
[1722153637746,1.5092716,67673.0,67672.0,0.000804]
[1722153637967,1.59754091,67673.0,67672.0,0.000804]
[1722153638150,1.1952406,67673.0,67672.0,0.000804]
[1722153638486,1.08936082,67673.0,67672.0,0.000804]
[1722153638674,1.13348522,67673.0,67672.0,0.000804]
[1722153638814,1.41512178,67673.0,67672.0,0.000804]
[1722153639014,1.34893365,67673.0,67672.0,0.000804]
[1722153639219,1.27136999,67673.0,67672.0,0.000804]
[1722153639416,1.32582816,67673.0,67672.0,0.000804]
[1722153639687,1.29052822,67673.0,67672.0,0.000804]
[1722153639884,1.39298879,67673.0,67672.0,0.000804]
[1722153640280,1.34887136,67673.0,67672.0,0.000804]
[1722153640630,1.41504751,67673.0,67672.0,0.000804]
[1722153640824,1.34887136,67673.0,67672.0,0.000804]
[1722153641470,1.32573007,67673.0,67672.0,0.000804]
[1722153641806,1.34887154,67673.0,67672.0,0.000804]
[1722153642346,1.32573007,67673.0,67672.0,0.000804]
[1722153642545,1.29052822,67673.0,67672.0,0.000804]
[1722153642740,1.32611913,67673.0,67672.0,0.000804]
[1722153642944,1.34926085,67673.0,67672.0,0.000804]
[1722153643122,1.32611913,67673.0,67672.0,0.000804]
[1722153644169,1.33204313,67673.0,67672.0,0.000804]
[1722153644385,1.18178356,67673.0,67672.0,0.000804]
[1722153646319,0.83613235,67673.0,67672.0,0.000804]
[1722153647508,0.06951491,67673.0,67672.0,0.000804]
[1722153647706,0.146215,67673.0,67672.0,0.000804]
[1722153647852,0.382646,67673.0,67672.0,0.000804]
[1722153648643,0.382646,67673.0,67672.0,0.000684]
[1722153649293,0.41830984,67673.0,67672.0,0.000684]
[1722153649708,0.41821435,67673.0,67672.0,0.000684]
[1722153650418,0.45564126,67673.0,67672.0,0.000684]
[1722153650586,0.41821435,67673.0,67672.0,0.000684]
[1722153650790,0.69195201,67673.0,67672.0,0.000684]
[1722153651674,0.69192278,67673.0,67672.0,0.000684]
[1722153652284,0.69192199,67673.0,67672.0,0.000684]
[1722153654575,0.45549099,67673.0,67672.0,0.000684]
[1722153654980,0.21905999,67673.0,67672.0,0.000684]
[1722153655377,0.47862817,67673.0,67672.0,0.000684]
[1722153655574,0.45553978,67673.0,67672.0,0.000684]
[1722153656178,0.47872139,67673.0,67672.0,0.000684]
[1722153656581,0.4555839,67673.0,67672.0,0.000684]
[1722153656808,0.47872154,67673.0,67672.0,0.000684]
[1722153657759,0.79275254,67673.0,67672.0,0.000684]
[1722153658468,0.79289578,67673.0,67672.0,0.000684]
[1722153658695,1.02932678,67673.0,67672.0,0.000684]
[1722153658922,1.29948073,67673.0,67672.0,0.000684]
[1722153659153,1.29932957,67673.0,67672.0,0.000684]
[1722153659396,1.36894126,67673.0,67672.0,0.000684]
[1722153659641,1.41311087,67673.0,67672.0,0.000684]
[1722153660368,1.39195185,67673.0,67672.0,0.000684]
[1722153660606,1.45819038,67673.0,67672.0,0.000684]
[1722153661636,1.39109684,67673.0,67672.0,0.000684]
[1722153662061,1.4573678,67673.0,67672.0,0.000684]
[1722153662442,1.4794582,67673.0,67672.0,0.000684]
[1722153663193,1.39109684,67673.0,67672.0,0.000684]
[1722153663439,1.50161604,67673.0,67672.0,0.000684]
[1722153663819,1.39109684,67673.0,67672.0,0.000684]
[1722153664500,1.39064757,67673.0,67672.0,0.000684]
[1722153665798,1.39148757,67673.0,67672.0,0.000684]
[1722153666437,1.52415735,67673.0,67672.0,0.000684]
[1722153666784,1.39148757,67673.0,67672.0,0.000684]
[1722153667371,1.52415735,67673.0,67672.0,0.000684]
[1722153667573,1.39148757,67673.0,67672.0,0.000684]
[1722153667757,1.45545468,67673.0,67672.0,0.000684]
[1722153667987,1.52455658,67673.0,67672.0,0.000684]
[1722153668182,1.39173337,67673.0,67672.0,0.000684]
[1722153668992,1.5245829,67673.0,67672.0,0.000684]
[1722153669402,1.31413337,67673.0,67672.0,0.000684]
[1722153669591,1.52461976,67673.0,67672.0,0.000684]
[1722153669997,1.39173337,67673.0,67672.0,0.000684]
[1722153670206,1.52461976,67673.0,67672.0,0.000684]
[1722153670439,1.39173337,67673.0,67672.0,0.000684]
[1722153671193,1.32264838,67673.0,67672.0,0.000684]
[1722153671442,1.16671788,67673.0,67672.0,0.000684]
[1722153671608,1.16671709,67673.0,67672.0,0.000684]
[1722153672007,1.02231709,67673.0,67672.0,0.000684]
[1722153672238,0.9188455,67673.0,67672.0,0.000684]
[1722153672367,0.78588609,67673.0,67672.0,0.000684]
[1722153672971,1.02231709,67673.0,67672.0,0.000684]
[1722153673464,1.02208668,67673.0,67672.0,0.000684]
[1722153674221,1.02148814,67673.0,67672.0,0.000684]
[1722153674428,1.09908814,67673.0,67672.0,0.000684]
[1722153675493,1.17658814,67673.0,67672.0,0.000684]
[1722153675693,1.23668814,67673.0,67672.0,0.000684]
[1722153676219,1.37618802,67673.0,67672.0,0.000684]
[1722153676854,1.54881575,67673.0,67672.0,0.000684]
[1722153677277,1.54886213,67673.0,67672.0,0.000684]
[1722153677526,1.29449218,67673.0,67672.0,0.000684]
[1722153677730,1.78455562,67673.0,67672.0,0.000684]
[1722153677878,1.73488147,67673.0,67672.0,0.000684]
[1722153678087,1.97131247,67673.0,67672.0,0.000684]
[1722153678465,1.95731247,67673.0,67672.0,0.000684]
[1722153678834,1.94331247,67673.0,67672.0,0.000684]
[1722153679037,1.97131247,67673.0,67672.0,0.000684]
[1722153679445,1.95731247,67673.0,67672.0,0.000684]
[1722153679836,1.97131247,67673.0,67672.0,0.000684]
[1722153680772,1.97175438,67673.0,67672.0,0.000684]
[1722153681118,1.88135418,67673.0,67672.0,0.000684]
[1722153681323,1.95798365,67673.0,67672.0,0.000684]
[1722153681764,1.97198365,67673.0,67672.0,0.000684]
[1722153682020,1.97198365,67673.0,67672.0,0.000634]
[1722153683969,1.97198365,67673.0,67657.0,0.000924]
[1722153683970,0.118241,67658.0,67657.0,0.000924]
[1722153684175,1.00124336,67658.0,67657.0,0.000924]
[1722153684483,1.23772636,67658.0,67657.0,0.000924]
[1722153685083,1.15902636,67658.0,67657.0,0.000924]
[1722153685870,1.17302636,67658.0,67657.0,0.000924]
[1722153686066,1.22115418,67658.0,67657.0,0.000924]
[1722153686268,1.45763718,67658.0,67657.0,0.000924]
[1722153686641,1.48820936,67658.0,67657.0,0.000924]
[1722153687308,1.48944484,67658.0,67657.0,0.000924]
[1722153687681,1.50344484,67658.0,67657.0,0.000924]
[1722153688223,1.60344484,67658.0,67657.0,0.000924]
[1722153689054,1.58944484,67658.0,67657.0,0.000924]
[1722153689259,1.72570441,67658.0,67657.0,0.000924]
[1722153689492,1.7345838,67658.0,67657.0,0.000924]
[1722153689813,1.7485838,67658.0,67657.0,0.000924]
[1722153689938,1.7345838,67658.0,67657.0,0.000924]
[1722153690152,1.7625838,67658.0,67657.0,0.000924]
[1722153690613,1.69288689,67658.0,67657.0,0.000924]
[1722153690771,1.76299768,67658.0,67657.0,0.000924]
[1722153690974,1.65675626,67658.0,67657.0,0.000924]
[1722153691173,1.94846714,67658.0,67657.0,0.000924]
[1722153691383,1.79915453,67658.0,67657.0,0.000924]
[1722153691574,1.78515453,67658.0,67657.0,0.000924]
[1722153691911,1.79915453,67658.0,67657.0,0.000924]
[1722153692097,1.7630255,67658.0,67657.0,0.000924]
[1722153692258,1.91230255,67658.0,67657.0,0.000924]
[1722153693066,2.14878555,67658.0,67657.0,0.000924]
[1722153693277,2.14875865,67658.0,67657.0,0.000924]
[1722153693426,1.91227565,67658.0,67657.0,0.000884]
[1722153693626,1.65675626,67658.0,67657.0,0.000884]
[1722153693825,1.76293696,67658.0,67657.0,0.000884]
[1722153694025,1.91218103,67658.0,67657.0,0.000884]
[1722153694232,1.76293696,67658.0,67657.0,0.000884]
[1722153694443,1.90664146,67658.0,67657.0,0.000884]
[1722153695222,1.75739739,67658.0,67657.0,0.000884]
[1722153695472,1.99388039,67658.0,67657.0,0.000884]
[1722153697109,1.99298903,67658.0,67657.0,0.000884]
[1722153697313,2.14218796,67658.0,67657.0,0.000884]
[1722153699111,1.99298903,67658.0,67657.0,0.000884]
[1722153700761,1.88769969,67658.0,67657.0,0.000884]
[1722153700925,1.99240585,67658.0,67657.0,0.000884]
[1722153703738,1.99237743,67658.0,67657.0,0.000884]
[1722153704931,2.1415583,67658.0,67657.0,0.000884]
[1722153705290,1.99237743,67658.0,67657.0,0.000884]
[1722153706234,1.97837743,67658.0,67657.0,0.000884]
[1722153707060,1.96480041,67658.0,67657.0,0.000884]
[1722153707272,2.13460041,67658.0,67657.0,0.000884]
[1722153707424,2.38508341,67658.0,67657.0,0.000884]
[1722153707626,2.37108341,67658.0,67657.0,0.000884]
[1722153707837,2.38508341,67658.0,67657.0,0.000884]
[1722153707995,2.39101041,67658.0,67657.0,0.000884]
[1722153710277,2.31341041,67658.0,67657.0,0.000884]
[1722153710427,2.39119469,67658.0,67657.0,0.000884]
[1722153713585,2.28590969,67658.0,67657.0,0.000884]
[1722153713781,2.391289,67658.0,67657.0,0.000884]
[1722153717131,2.39134816,67658.0,67657.0,0.000884]
[1722153718496,1.39032259,67658.0,67657.0,0.000884]
[1722153718706,1.46814228,67658.0,67657.0,0.000884]
[1722153720079,1.45414228,67658.0,67657.0,0.000884]
[1722153720250,1.46814228,67658.0,67657.0,0.000884]
[1722153720452,1.34848412,67658.0,67657.0,0.000884]
[1722153720703,1.11744769,67658.0,67657.0,0.144884]
[1722153720858,1.20904769,67658.0,67657.0,0.144884]
[1722153721473,1.1721683,67658.0,67657.0,0.144884]
[1722153721896,0.7860853,67658.0,67657.0,0.144884]
[1722153722099,0.1749513,67658.0,67657.0,0.144884]
[1722153722260,0.19348172,67658.0,67657.0,0.144884]
[1722153722458,0.18533649,67658.0,67657.0,0.144884]
[1722153722920,0.30377247,67658.0,67657.0,0.144884]
[1722153723077,0.18553147,67658.0,67657.0,0.144884]
[1722153723293,0.0819945,67658.0,67657.0,0.263127]
[1722153723489,0.05976709,67658.0,67657.0,0.263127]
[1722153723690,0.04576709,67658.0,67657.0,0.144884]
[1722153723898,0.08190128,67658.0,67657.0,0.144884]
[1722153724314,0.03613419,67658.0,67657.0,0.144884]
[1722153724474,0.46418871,67658.0,67657.0,0.144884]
[1722153724706,0.9206648,67658.0,67657.0,0.144884]
[1722153724927,1.03448224,67658.0,67657.0,0.144884]
[1722153725129,1.02748224,67658.0,67657.0,0.144884]
[1722153725557,1.02248224,67658.0,67657.0,0.144884]
[1722153725969,1.02272994,67658.0,67657.0,0.144884]
[1722153726656,1.02772994,67658.0,67657.0,0.144884]
[1722153727033,1.03472994,67658.0,67657.0,0.144884]
[1722153727246,0.95712994,67658.0,67657.0,0.144884]
[1722153727454,0.96912994,67658.0,67657.0,0.144884]
[1722153729199,0.9697585,67658.0,67657.0,0.144884]
[1722153732418,0.94989379,67658.0,67657.0,0.144884]
[1722153732649,0.95022005,67658.0,67657.0,0.144884]
[1722153733047,0.91390283,67658.0,67657.0,0.144884]
[1722153733251,0.95022005,67658.0,67657.0,0.144884]
[1722153733485,1.18670305,67658.0,67657.0,0.144884]
[1722153734068,1.31895973,67658.0,67657.0,0.144884]
[1722153734696,1.31878667,67658.0,67657.0,0.144884]
[1722153734906,1.1863521,67658.0,67657.0,0.144884]
[1722153735515,1.2563802,67658.0,67657.0,0.079984]
[1722153735897,1.25628601,67658.0,67657.0,0.079984]
[1722153739145,1.15020794,67658.0,67657.0,0.079984]
[1722153739339,1.15020794,67658.0,67657.0,0.000884]
[1722153739340,1.492884,67658.0,67657.0,0.000884]
[1722153739720,1.515884,67658.0,67657.0,0.000884]
[1722153739908,1.66527132,67658.0,67657.0,0.000884]
[1722153740303,1.491884,67658.0,67657.0,0.000884]
[1722153740670,1.65527132,67658.0,67657.0,0.000884]
[1722153740888,1.64127132,67658.0,67657.0,0.000884]
[1722153741104,1.65527132,67658.0,67657.0,0.000884]
[1722153741308,1.66927132,67658.0,67657.0,0.000884]
[1722153741506,1.519884,67658.0,67657.0,0.000884]
[1722153742477,1.765084,67658.0,67657.0,0.000884]
[1722153742734,1.75233531,67658.0,67657.0,0.000884]
[1722153742968,1.70158851,67658.0,67657.0,0.000884]
[1722153743190,1.75233956,67658.0,67657.0,0.000884]
[1722153743413,1.75233956,67658.0,67657.0,1e-06]
[1722153743414,2.00282256,67658.0,67657.0,1e-06]
[1722153743616,2.12508213,67658.0,67657.0,1e-06]
[1722153743788,2.13908213,67658.0,67657.0,1e-06]
[1722153743995,2.15308213,67658.0,67657.0,1e-06]
[1722153745818,2.15253155,67658.0,67657.0,1e-06]
[1722153746019,1.537159,67657.0,67656.0,1e-06]
[1722153746220,1.82842987,67657.0,67656.0,1e-06]
[1722153746648,1.89462987,67657.0,67656.0,1e-06]
[1722153747172,2.05082987,67657.0,67656.0,1e-06]
[1722153747379,2.07882987,67657.0,67656.0,1e-06]
[1722153747658,2.29671601,67657.0,67656.0,1e-06]
[1722153747814,2.07882987,67657.0,67656.0,1e-06]
[1722153748499,2.29670863,67657.0,67656.0,1e-06]
[1722153748697,2.4469682,67657.0,67656.0,1e-06]
[1722153749268,2.22910272,67657.0,67656.0,1e-06]
[1722153749698,2.44695214,67657.0,67656.0,1e-06]
[1722153750099,2.44695214,67657.0,67649.0,0.000924]
[1722153750100,1.44601,67650.0,67649.0,0.000924]
[1722153750327,2.01878623,67650.0,67649.0,0.000924]
[1722153750708,2.25529723,67650.0,67649.0,0.000924]
[1722153752409,2.26929723,67650.0,67649.0,0.000924]
[1722153752887,2.16238591,67650.0,67649.0,0.000924]
[1722153753168,2.28380822,67650.0,67649.0,0.000884]
[1722153753544,2.28380822,67650.0,67649.0,1e-06]
[1722153754399,2.25580822,67650.0,67649.0,1e-06]
[1722153754578,2.26980822,67650.0,67649.0,1e-06]
[1722153754816,2.26987735,67650.0,67649.0,1e-06]
[1722153754984,2.25587735,67650.0,67649.0,1e-06]
[1722153755724,2.41189804,67650.0,67649.0,1e-06]
[1722153756347,2.42589804,67650.0,67649.0,1e-06]
[1722153756832,2.43989804,67650.0,67649.0,1e-06]
[1722153756977,2.42589804,67650.0,67649.0,1e-06]
[1722153757378,2.43989804,67650.0,67649.0,1e-06]
[1722153757818,2.33218591,67650.0,67649.0,1e-06]
[1722153758024,2.43971467,67650.0,67649.0,1e-06]
[1722153762421,2.33218591,67650.0,67649.0,1e-06]
[1722153762601,2.44004006,67650.0,67649.0,1e-06]
[1722153762807,2.36913791,67650.0,67649.0,1e-06]
[1722153763110,2.43477454,67650.0,67649.0,1e-06]
[1722153763967,2.44877454,67650.0,67649.0,1e-06]
[1722153764139,2.43477454,67650.0,67649.0,1e-06]
[1722153764377,2.42077454,67650.0,67649.0,1e-06]
[1722153764508,2.44877454,67650.0,67649.0,1e-06]
[1722153765736,2.44879133,67650.0,67649.0,1e-06]
[1722153765942,2.50807033,67650.0,67649.0,1e-06]
[1722153766901,1.96375523,67650.0,67649.0,1e-06]
[1722153767107,2.00068066,67650.0,67649.0,1e-06]
[1722153767425,2.22697892,67650.0,67649.0,1e-06]
[1722153767633,2.07788066,67650.0,67649.0,1e-06]
[1722153767851,2.06388066,67650.0,67649.0,1e-06]
[1722153768054,2.20014023,67650.0,67649.0,1e-06]
[1722153768252,2.22814023,67650.0,67649.0,1e-06]
[1722153769774,2.20014023,67650.0,67649.0,1e-06]
[1722153770136,2.21414023,67650.0,67649.0,1e-06]
[1722153770807,2.22814023,67650.0,67649.0,1e-06]
[1722153772436,2.22721725,67650.0,67649.0,1e-06]
[1722153772857,2.2272613,67650.0,67649.0,1e-06]
[1722153775586,2.22773689,67650.0,67649.0,1e-06]
[1722153776021,2.07747732,67650.0,67649.0,1e-06]
[1722153778802,1.97005231,67650.0,67649.0,1e-06]
[1722153779172,2.07742682,67650.0,67649.0,1e-06]
[1722153781401,1.97005231,67650.0,67649.0,1e-06]
[1722153781608,2.07726868,67650.0,67649.0,1e-06]
[1722153781811,1.88380088,67650.0,67649.0,1e-06]
[1722153782013,1.99106748,67650.0,67649.0,1e-06]
[1722153783733,1.88380088,67650.0,67649.0,1e-06]
[1722153783937,1.99115377,67650.0,67649.0,1e-06]
[1722153784721,2.20911325,67650.0,67649.0,1e-06]
[1722153785767,1.99088112,67650.0,67649.0,1e-06]
[1722153787905,1.88380088,67650.0,67649.0,1e-06]
[1722153788294,1.99100575,67650.0,67649.0,1e-06]
[1722153790187,1.84074618,67650.0,67649.0,1e-06]
[1722153791394,1.73354131,67650.0,67649.0,1e-06]
[1722153791575,1.84049286,67650.0,67649.0,1e-06]
[1722153791828,1.73354131,67650.0,67649.0,1e-06]
[1722153792000,1.84049288,67650.0,67649.0,1e-06]
[1722153792230,1.99075245,67650.0,67649.0,1e-06]
[1722153794671,1.99013614,67650.0,67649.0,1e-06]
[1722153795296,1.99097614,67650.0,67649.0,1e-06]
[1722153798001,1.9908944,67650.0,67649.0,1e-06]
[1722153800003,1.9136944,67650.0,67649.0,1e-06]
[1722153800142,1.9908944,67650.0,67649.0,1e-06]
[1722153801157,1.88464088,67650.0,67649.0,1e-06]
[1722153801366,1.99107938,67650.0,67649.0,1e-06]
[1722153801597,1.88464088,67650.0,67649.0,1e-06]
[1722153801805,1.99107939,67650.0,67649.0,1e-06]
[1722153804740,1.99089411,67650.0,67649.0,1e-06]
[1722153807911,1.99077637,67650.0,67649.0,1e-06]
[1722153811132,1.99119314,67650.0,67649.0,1e-06]
[1722153811333,1.91403579,67650.0,67649.0,1e-06]
[1722153811573,1.99123579,67650.0,67649.0,1e-06]
[1722153811736,1.88464088,67650.0,67649.0,1e-06]
[1722153811942,1.84089099,67650.0,67649.0,1e-06]
[1722153815096,2.05952924,67650.0,67649.0,1e-06]
[1722153815291,1.84089099,67650.0,67649.0,1e-06]
[1722153815716,2.05953122,67650.0,67649.0,1e-06]
[1722153816072,1.84089099,67650.0,67649.0,1e-06]
[1722153816702,1.3520502,67650.0,67649.0,0.143901]
[1722153817393,1.4292502,67650.0,67649.0,0.143901]
[1722153817793,1.42976713,67650.0,67649.0,0.143901]
[1722153818002,1.41576713,67650.0,67649.0,0.143901]
[1722153818241,1.51576713,67650.0,67649.0,0.143901]
[1722153818786,1.52976713,67650.0,67649.0,0.143901]
[1722153819302,1.51576713,67650.0,67649.0,0.143901]
[1722153819771,1.52976713,67650.0,67649.0,0.143901]
[1722153821652,1.42265552,67650.0,67649.0,0.143901]
[1722153821911,1.52960558,67650.0,67649.0,0.143901]